bitfinex/quotes_ETHUSD_20241122
["timestamp","ask_amount","ask_price","bid_price","bid_amount"]
[1732248813182,0.18523,3364.7,3363.7,0.8028]
[1732248813544,0.7523,3364.9,3363.7,0.8028]
[1732248813759,0.26173639,3365.3,3364.3,0.8028]
[1732248814082,1.06176773,3365.7,3364.5,0.2961]
[1732248815377,1.32477316,3365.7,3364.5,0.2961]
[1732248818261,1.01530543,3365.7,3364.6,0.2961]
[1732248818486,0.26300543,3365.7,3364.8,0.2961]
[1732248818807,0.8016,3366.0,3364.8,0.2961]
[1732248819504,1.06357343,3366.0,3364.8,0.2961]
[1732248820297,0.55,3365.9,3364.8,0.2961]
[1732248820496,0.55,3365.7,3364.8,0.2961]
[1732248822496,0.55,3365.5,3364.8,0.2961]
[1732248825896,0.55,3365.5,3364.0,0.01]
[1732248825897,0.55,3365.5,3364.3,0.2961]
[1732248827402,0.55,3365.3,3364.3,0.2961]
[1732248827631,0.55,3365.1,3364.3,0.2961]
[1732248827898,0.55,3365.1,3363.5,0.7964]
[1732248828102,0.7979,3365.0,3363.6,0.2961]
[1732248828267,0.55,3364.9,3363.6,0.2961]
[1732248828463,0.18979,3364.8,3363.6,0.2961]
[1732248828663,0.55,3364.7,3363.6,0.2961]
[1732248829481,0.55,3364.5,3363.6,0.2961]
[1732248830316,0.55,3364.5,3363.5,1.0925]
[1732248830479,0.55,3364.3,3363.5,0.7964]
[1732248830803,0.18979,3364.2,3362.8,0.7964]
[1732248831107,0.55,3364.1,3362.8,0.7964]
[1732248831409,0.55,3364.3,3362.9,0.2961]
[1732248832087,0.55,3364.3,3362.8,0.7964]
[1732248832088,0.25961711,3364.3,3363.2,1.0925]
[1732248832292,0.7979,3364.4,3363.2,1.0925]
[1732248832920,0.55,3364.3,3363.2,0.7964]
[1732248833210,0.55,3364.1,3363.2,0.7964]
[1732248833393,0.55,3364.1,3363.2,1.0925]
[1732248833920,0.16081367,3364.2,3363.2,1.0925]
[1732248834217,0.30961443,3364.6,3363.3,0.7964]
[1732248834778,0.30961443,3364.6,3363.4,0.01]
[1732248835011,0.30961443,3364.6,3363.8,0.2961]
[1732248835012,0.56920572,3364.6,3363.8,0.2961]
[1732248835184,0.25959129,3364.6,3363.8,0.2961]
[1732248835385,1.10745267,3365.0,3363.8,0.2961]
[1732248836235,0.55,3364.9,3363.8,0.2961]
[1732248836532,0.55,3364.7,3363.8,0.2961]
[1732248838212,0.827,3364.6,3362.9,0.2961]
[1732248838413,0.827,3364.6,3362.8,0.7592]
[1732248838414,0.827,3364.4,3362.8,0.7592]
[1732248838711,0.55,3363.8,3362.1,0.7592]
[1732248839097,0.55,3363.6,3362.1,0.7592]
[1732248839428,0.55,3363.8,3362.1,0.7592]
[1732248839943,0.55,3363.6,3362.1,0.7592]
[1732248842398,0.55,3363.6,3362.4,0.7592]
[1732248842399,0.26453294,3363.6,3362.4,0.7592]
[1732248842597,0.7592,3363.7,3362.4,0.7592]
[1732248842817,0.15862,3363.6,3362.4,0.7592]
[1732248843002,0.15862,3363.6,3362.4,1.0553]
[1732248843195,0.15862,3363.6,3362.5,0.7592]
[1732248844288,1.0198344,3363.7,3362.7,0.01]
[1732248844489,0.7592,3363.7,3362.8,0.7592]
[1732248846708,0.55,3363.6,3362.8,0.7592]
[1732248846927,0.55,3363.4,3362.8,0.7592]
[1732248847440,0.15676915,3363.5,3362.8,0.7592]
[1732248849342,0.55,3363.4,3362.9,0.2961]
[1732248854120,0.55,3363.2,3362.2,0.2961]
[1732248856056,0.81341026,3363.2,3362.2,0.2961]
[1732248857259,0.81341026,3363.2,3362.0,0.2961]
[1732248857557,0.16335103,3363.1,3362.6,0.2961]
[1732248857719,0.8201,3363.6,3362.6,0.2961]
[1732248857920,0.55,3363.5,3362.6,0.2961]
[1732248858430,0.55,3363.6,3362.8,0.2961]
[1732248858753,3.48992757,3363.6,3363.0,0.2961]
[1732248861537,0.55,3363.5,3363.0,0.2961]
[1732248862170,1.3701,3363.5,3363.0,0.2961]
[1732248862458,0.5881915,3363.4,3363.0,0.2961]
[1732248862666,0.55,3363.3,3363.0,0.2961]
[1732248862828,0.55,3363.3,3362.3,0.2961]
[1732248863573,3.48992757,3363.2,3362.3,0.2961]
[1732248863739,1.01281191,3363.1,3362.3,0.2961]
[1732248865833,0.55,3363.1,3362.3,0.2961]
[1732248867361,0.81032955,3363.1,3362.3,0.2961]
[1732248868064,0.81032955,3363.1,3362.2,0.2961]
[1732248868238,0.81032955,3363.1,3362.4,0.2961]
[1732248868436,0.43002571,3363.0,3362.4,0.2961]
[1732248868625,3.48992757,3362.8,3362.4,0.2961]
[1732248869324,3.48992757,3362.8,3362.3,0.5059]
[1732248869325,0.55,3362.7,3362.3,0.5059]
[1732248869554,0.55,3362.7,3362.3,0.802]
[1732248869775,0.40399276,3362.6,3362.3,0.802]
[1732248870793,0.40209041,3362.6,3362.3,0.802]
[1732248873479,0.40209041,3362.6,3362.3,0.76021235]
[1732248873679,0.66381442,3362.6,3362.3,0.76021235]
[1732248874994,0.66381442,3362.6,3361.5,0.01]
[1732248875289,3.48992757,3362.4,3361.2,0.01]
[1732248875897,0.8214,3362.3,3361.2,0.01]
[1732248876279,0.8214,3362.3,3361.0,0.01]
[1732248876456,0.8214,3362.3,3361.2,0.2961]
[1732248876457,0.47817018,3362.2,3361.2,0.2961]
[1732248876659,3.48992757,3362.1,3361.2,0.2961]
[1732248878302,0.8214,3362.0,3361.3,0.2961]
[1732248878598,0.55,3361.7,3361.3,0.2961]
[1732248879192,0.55,3361.7,3360.6,0.2961]
[1732248879762,3.48992757,3361.5,3360.6,0.2961]
[1732248880198,0.8214,3361.4,3360.6,0.2961]
[1732248880432,0.98113276,3361.3,3360.6,0.2961]
[1732248881187,3.74359566,3361.5,3360.6,0.2961]
[1732248881188,0.25366809,3361.5,3360.6,0.2961]
[1732248881426,0.55,3361.7,3360.8,1.0675]
[1732248882987,0.55,3361.5,3360.8,1.0675]
[1732248886392,0.55,3361.5,3360.3,0.01]
[1732248886393,3.48992757,3361.2,3360.3,0.2961]
[1732248886625,0.34899276,3361.1,3360.3,0.3061]
[1732248886792,3.48992757,3361.6,3360.7,0.2961]
[1732248886793,4.26852757,3361.6,3360.7,0.2961]
[1732248887296,3.48992757,3361.6,3360.7,0.2961]
[1732248887496,0.42979562,3361.5,3360.7,0.2961]
[1732248887697,0.55,3361.7,3360.7,0.2961]
[1732248888414,0.55,3361.7,3360.9,1.0736]
[1732248888594,0.25802862,3361.8,3360.9,1.0736]
[1732248888808,0.7632,3362.3,3361.3,0.7775]
[1732248889018,0.7632,3362.3,3361.3,1.0736]
[1732248889334,0.30974486,3362.7,3361.4,0.7875]
[1732248889491,0.30974486,3362.7,3361.4,0.7775]
[1732248889691,0.30974486,3362.7,3361.4,0.7875]
[1732248889889,3.48992757,3362.5,3361.5,0.2961]
[1732248890121,0.37996724,3362.4,3361.5,0.2961]
[1732248890714,0.55,3362.3,3361.5,0.2961]
[1732248891134,1.3132,3362.3,3361.5,0.2961]
[1732248892346,0.55,3362.3,3361.5,0.2961]
[1732248893930,0.80390335,3362.3,3361.5,0.2961]
[1732248894101,0.80390335,3362.3,3361.4,0.7875]
[1732248894102,0.80390335,3362.3,3361.6,0.2961]
[1732248894293,0.80390335,3362.3,3361.4,0.02]
[1732248894294,0.80390335,3362.3,3361.7,1.0736]
[1732248895678,3.48992757,3362.5,3361.7,1.0736]
[1732248895983,0.55,3362.8,3361.8,1.0736]
[1732248896152,3.48992757,3362.9,3362.0,0.2961]
[1732248896482,0.40399276,3362.7,3362.0,0.2961]
[1732248898390,3.74577194,3362.9,3362.0,0.2961]
[1732248898613,3.74577194,3362.9,3362.2,0.2961]
[1732248899168,3.79962771,3363.3,3362.4,0.2961]
[1732248899388,0.45825277,3363.2,3362.4,0.2961]
[1732248900185,3.48992757,3362.9,3362.4,0.2961]
[1732248900347,0.45825277,3363.2,3362.4,0.2961]
[1732248900546,0.55,3363.2,3362.4,0.2961]
[1732248901669,1.09785408,3363.8,3362.6,0.7882]
[1732248901670,3.79958165,3363.8,3362.6,0.7882]
[1732248901879,0.37995817,3363.7,3362.7,1.0843]
[1732248902385,3.48992757,3363.4,3362.7,1.0843]
[1732248902557,3.48992757,3363.4,3362.7,0.2961]
[1732248902879,1.3329,3362.9,3362.4,0.2961]
[1732248903093,3.48992757,3362.6,3362.3,0.7882]
[1732248903251,0.34899276,3362.5,3362.1,0.2961]
[1732248904605,0.7829,3363.2,3362.1,0.3061]
[1732248904886,4.27282757,3363.2,3362.3,0.2961]
[1732248905089,3.48992757,3363.2,3362.3,0.2961]
[1732248905644,3.48992757,3362.8,3362.3,0.2961]
[1732248905882,0.34899276,3362.7,3362.3,0.2961]
[1732248907163,0.55,3363.1,3362.3,0.2961]
[1732248910171,0.55,3363.1,3362.2,0.7882]
[1732248910172,0.8297,3363.0,3361.9,0.2961]
[1732248910366,0.55,3362.6,3361.9,0.2961]
[1732248910890,3.48992757,3362.4,3361.9,0.2961]
[1732248911095,3.48992757,3362.4,3361.5,0.2961]
[1732248912254,0.55,3362.6,3361.5,0.2961]
[1732248912500,0.48696276,3362.5,3361.5,0.2961]
[1732248912673,0.55,3362.4,3361.4,0.01]
[1732248912990,0.55,3362.4,3361.6,0.2961]
[1732248913202,0.15869628,3362.3,3361.6,0.2961]
[1732248913357,0.48696276,3362.5,3361.6,0.2961]
[1732248913566,0.25227794,3362.6,3362.0,0.2961]
[1732248913911,0.8109,3363.0,3362.0,0.2961]
[1732248914815,0.55,3362.7,3362.0,0.2961]
[1732248915528,0.8109,3362.6,3362.0,0.2961]
[1732248915811,0.55,3362.2,3361.3,0.782]
[1732248916030,0.57974678,3362.2,3361.3,0.782]
[1732248916383,0.55,3362.0,3360.2,0.782]
[1732248916623,0.02974678,3361.9,3360.4,0.782]
[1732248916916,0.17976142,3361.8,3360.6,0.782]
[1732248917082,0.02974678,3361.7,3360.6,0.782]
[1732248919223,0.28178295,3361.7,3360.6,0.782]
[1732248919405,0.02974678,3361.7,3360.6,0.782]
[1732248920719,0.02974678,3361.7,3360.7,0.2961]
[1732248922283,0.39631441,3361.6,3360.7,0.2961]
[1732248922478,0.02974678,3361.5,3360.7,0.2961]
[1732248923199,4.33057435,3361.5,3360.7,0.2961]
[1732248924123,4.33057435,3361.5,3360.6,0.782]
[1732248924541,0.55,3361.4,3360.6,0.782]
[1732248924685,0.51780422,3361.3,3360.6,0.782]
[1732248925021,3.48992757,3361.1,3360.3,0.2961]
[1732248925225,0.57974678,3361.0,3360.0,1.26893031]
[1732248925906,3.57974678,3361.0,3360.0,1.26893031]
[1732248926097,0.8067,3360.8,3360.0,1.26893031]
[1732248926416,0.02974678,3360.7,3360.0,0.48693031]
[1732248927530,0.57974678,3360.7,3360.0,0.48693031]
[1732248927684,0.55,3360.5,3360.0,0.48693031]
[1732248927884,4.29662757,3360.2,3360.0,0.48693031]
[1732248928084,4.32637435,3360.2,3360.0,0.48693031]
[1732248928516,0.83644678,3360.2,3360.0,0.48693031]
[1732248929119,0.8067,3360.5,3360.0,0.48693031]
[1732248929499,0.55,3360.4,3360.0,0.48693031]
[1732248929721,0.51738422,3360.3,3360.0,0.48693031]
[1732248930344,0.51738422,3360.3,3360.0,0.19019031]
[1732248933120,0.78200177,3360.3,3359.5,0.2961]
[1732248933295,3.48992757,3360.2,3359.5,0.2961]
[1732248933501,0.81193971,3360.1,3359.5,0.2961]
[1732248934634,0.8067,3360.0,3359.5,0.2961]
[1732248934805,0.81193971,3360.1,3359.5,0.2961]
[1732248935137,0.78219293,3360.1,3359.5,0.2961]
[1732248935347,0.02974678,3360.1,3359.5,0.2961]
[1732248937447,1.10106433,3360.3,3359.5,0.2961]
[1732248938348,0.8067,3360.2,3359.5,0.2961]
[1732248938510,0.02974678,3360.1,3359.5,0.2961]
[1732248939223,0.83644678,3360.2,3359.5,0.2961]
[1732248939425,0.16213175,3360.1,3359.5,0.2961]
[1732248939640,0.02974678,3360.0,3359.5,0.2961]
[1732248940157,0.16213175,3360.1,3359.6,0.7721]
[1732248940316,0.26461755,3360.3,3359.6,0.7721]
[1732248940514,0.8067,3360.8,3359.6,0.2961]
[1732248940710,0.02974678,3360.7,3359.8,0.2961]
[1732248941014,0.79039862,3360.7,3359.8,0.2961]
[1732248944531,0.76065184,3360.7,3359.8,0.7979]
[1732248944755,0.8089,3361.1,3360.2,1.094]
[1732248945063,0.02974678,3361.1,3360.2,1.094]
[1732248945262,4.29882757,3361.4,3360.3,0.7979]
[1732248945429,0.46087164,3361.3,3360.3,1.094]
[1732248945764,0.46087164,3361.3,3359.5,0.0297608]
[1732248945765,0.46087164,3361.3,3360.5,0.2961]
[1732248945931,0.02974678,3361.2,3360.5,0.2961]
[1732248946132,0.48191928,3361.1,3360.5,0.2961]
[1732248946916,3.51967435,3361.0,3359.9,0.2961]
[1732248947121,3.51967435,3361.0,3360.1,0.2961]
[1732248947323,0.40015936,3360.9,3360.1,0.2961]
[1732248948122,0.02974678,3360.8,3360.1,0.2961]
[1732248948939,0.42990614,3360.9,3360.1,0.2961]
[1732248949437,0.02974678,3360.8,3360.1,0.2961]
[1732248949652,0.41772575,3360.7,3360.1,0.2961]
[1732248954738,0.02974678,3360.6,3360.1,0.2961]
[1732248955449,3.51967435,3360.6,3360.1,0.2961]
[1732248957237,0.8089,3360.5,3359.7,0.2961]
[1732248957563,0.02974678,3360.4,3359.7,0.2961]
[1732248958373,3.48992757,3360.3,3359.7,0.2961]
[1732248958575,0.02974678,3360.2,3359.7,0.2961]
[1732248959063,0.55,3360.4,3359.8,0.2961]
[1732248959234,3.48992757,3360.9,3359.9,1.094]
[1732248959640,3.75352634,3360.9,3359.9,1.094]
[1732248959844,0.45921731,3360.8,3359.9,1.094]
[1732248960271,0.45921731,3360.8,3360.0,1.094]
[1732248960435,3.75352634,3360.9,3360.2,0.2961]
[1732248961781,3.51967435,3361.3,3360.4,1.094]
[1732248961983,0.33098888,3361.4,3360.6,0.2961]
[1732248962475,0.02974678,3361.3,3360.6,0.2961]
[1732248962832,0.59068188,3361.4,3360.6,0.2961]
[1732248963048,0.59068188,3361.4,3360.7,1.094]
[1732248965092,0.3096268,3361.9,3361.0,0.2961]
[1732248965093,0.02974678,3361.8,3361.0,0.2961]
[1732248965289,0.02974678,3361.8,3361.2,0.2961]
[1732248965596,0.2522267,3361.9,3361.2,0.2961]
[1732248965893,0.02974678,3362.0,3361.2,0.2961]
[1732248965894,0.02974678,3361.8,3361.2,0.2961]
[1732248966096,0.02974678,3361.9,3361.2,0.2961]
[1732248966301,0.02974678,3361.9,3361.3,0.2961]
[1732248966596,0.8089,3362.9,3361.9,0.2961]
[1732248966749,0.02974678,3362.8,3361.9,0.2961]
[1732248967295,0.02974678,3362.8,3362.1,0.2961]
[1732248967449,0.30967672,3363.3,3362.2,0.7855]
[1732248967649,0.02974678,3363.5,3362.7,0.2961]
[1732248967849,0.02974678,3363.5,3362.6,0.7855]
[1732248967850,0.02974678,3363.7,3362.6,1.0823]
[1732248969100,0.57974678,3363.7,3362.6,0.7855]
[1732248969263,0.2615751,3363.9,3362.6,0.7855]
[1732248969264,0.16375219,3363.6,3362.6,0.7855]
[1732248969465,0.02974678,3364.1,3362.6,0.7855]
[1732248970071,0.02974678,3364.1,3362.8,0.7855]
[1732248970790,0.57974678,3364.1,3362.8,0.7855]
[1732248971103,0.24190708,3364.0,3362.8,0.7855]
[1732248971268,0.02974678,3363.9,3362.8,0.7855]
[1732248972272,0.57974678,3363.9,3362.8,0.7855]
[1732248973077,4.03992757,3363.7,3362.8,0.7855]
[1732248973275,4.03992757,3363.7,3361.6,0.8035]
[1732248973276,0.55,3363.5,3361.6,0.8035]
[1732248973475,0.7682,3363.2,3361.6,0.8035]
[1732248973697,0.57974678,3363.1,3361.6,0.8035]
[1732248974931,0.57974678,3363.1,3361.7,0.8035]
[1732248975832,0.57974678,3363.1,3361.9,0.8035]
[1732248975833,0.55,3363.1,3361.9,0.8035]
[1732248976438,0.02974678,3363.0,3361.9,0.8035]
[1732248976788,0.81114065,3363.1,3361.9,0.8035]
[1732248977961,0.24190708,3364.0,3362.1,0.8035]
[1732248978133,0.02974678,3364.2,3362.3,0.8035]
[1732248978432,0.02974678,3364.2,3362.5,0.8035]
[1732248978795,0.02974678,3364.2,3362.7,0.8035]
[1732248979136,0.02974678,3364.2,3362.6,0.02973424]
[1732248979137,0.21558499,3364.1,3362.8,0.2968]
[1732248979432,0.55,3364.0,3363.0,0.2968]
[1732248979593,0.57974678,3364.0,3363.0,0.2968]
[1732248981594,0.42852593,3363.9,3362.3,0.2968]
[1732248981807,0.26277185,3364.3,3363.1,0.2968]
[1732248982147,0.25318504,3364.4,3363.7,0.2968]
[1732248982346,0.02974678,3364.6,3363.7,0.2968]
[1732248982518,0.28793925,3364.6,3363.7,0.2968]
[1732248982730,0.02974678,3364.6,3363.7,0.2968]
[1732248982945,0.02974678,3364.7,3363.7,0.2968]
[1732248983309,0.57974678,3364.7,3363.7,0.2968]
[1732248984321,0.02974678,3364.7,3363.7,0.2968]
[1732248984526,0.41297468,3364.6,3363.7,0.2968]
[1732248984855,0.02974678,3364.5,3363.7,0.2968]
[1732248985475,0.02974678,3364.5,3362.8,0.2968]
[1732248985640,0.41297468,3364.6,3363.2,0.2968]
[1732248985834,0.15129747,3364.5,3363.4,0.2968]
[1732248986045,0.15129747,3364.5,3362.9,0.38997739]
[1732248986046,0.55,3364.8,3363.7,0.8035]
[1732248986248,3.48992757,3365.4,3363.9,0.7876]
[1732248986249,0.82434678,3365.3,3363.9,0.7876]
[1732248986455,0.8035,3365.2,3363.9,0.7876]
[1732248986622,0.02974678,3365.1,3363.9,0.7876]
[1732248987667,0.02974678,3365.1,3364.0,0.2968]
[1732248987951,0.19768395,3365.0,3364.1,0.7876]
[1732248988717,0.19768395,3365.0,3364.3,0.7876]
[1732248989936,0.02974678,3364.9,3364.3,0.7876]
[1732248990137,0.45119583,3364.8,3364.3,0.7876]
[1732248990338,3.48992757,3364.6,3363.9,0.7876]
[1732248990667,0.02974678,3364.5,3363.9,0.7876]
[1732248990839,0.35196744,3364.4,3363.9,0.7876]
[1732248991039,0.45119583,3364.8,3363.9,0.7876]
[1732248991040,0.02974678,3364.7,3363.9,0.7876]
[1732248991947,0.57974678,3364.7,3363.9,0.7876]
[1732248992154,0.7774396,3364.6,3363.9,0.7876]
[1732248992363,0.02974678,3364.5,3363.9,0.7876]
[1732248992542,0.7774396,3364.6,3363.9,0.7876]
[1732248992955,0.02974678,3364.6,3363.9,0.7876]
[1732248993475,0.2832726,3364.8,3363.9,0.7876]
[1732248993681,3.48992757,3364.9,3363.9,0.7876]
[1732248993976,0.22743073,3365.0,3364.1,0.7876]
[1732248994182,0.02974678,3365.0,3364.3,0.7876]
[1732248994394,3.48992757,3365.3,3364.4,0.2968]
[1732248994560,0.3799428,3365.2,3364.4,0.2968]
[1732248994886,0.3799428,3365.2,3364.6,0.2968]
[1732248995184,0.02974678,3365.3,3364.6,0.2968]
[1732248995392,0.28938395,3365.3,3364.6,0.2968]
[1732248995543,0.02974678,3365.3,3364.6,0.2968]
[1732248995742,0.02974678,3365.6,3364.8,0.2968]
[1732248995977,0.42775276,3365.5,3364.8,0.2968]
[1732248996176,0.42775276,3365.5,3365.0,0.2968]
[1732248996386,3.48992757,3366.1,3365.0,0.2968]
[1732248996591,0.81734678,3366.0,3365.2,0.2968]
[1732248996745,0.51018743,3365.9,3365.2,0.2968]
[1732248997583,0.51018743,3365.9,3364.5,0.2968]
[1732248997752,0.51018743,3365.9,3364.8,0.2968]
[1732248998082,0.51018743,3365.9,3364.5,0.02971624]
[1732248998083,0.02974678,3365.9,3365.4,0.2968]
[1732248998289,0.81734678,3366.0,3365.4,0.2968]
[1732248998785,1.04710578,3366.2,3365.6,0.2968]
[1732248998945,0.7917,3366.2,3365.6,0.2968]
[1732248999152,0.7917,3366.2,3365.5,0.7917]
[1732249000385,0.02974678,3366.1,3365.5,0.7917]
[1732249000600,0.02974678,3366.3,3365.5,0.7917]
[1732249000924,0.7917,3366.3,3365.5,0.7917]
[1732249001257,0.02974678,3366.2,3365.5,0.7917]
[1732249002674,0.28434103,3366.2,3365.5,0.7917]
[1732249002871,0.02974678,3366.2,3365.5,0.7917]
[1732249003081,0.15792468,3366.1,3365.5,0.7917]
[1732249003676,0.02974678,3366.0,3365.5,0.7917]
[1732249004089,0.15792468,3366.1,3365.5,0.7917]
[1732249005265,1.04760965,3366.3,3365.5,0.7917]
[1732249005601,0.7917,3366.3,3365.5,0.7917]
[1732249006165,0.02974678,3366.2,3365.5,0.7917]
[1732249006359,0.7917,3366.3,3365.5,0.7917]
[1732249006577,0.78754678,3366.2,3365.5,0.7917]
[1732249006807,0.18389221,3366.1,3365.5,0.7917]
[1732249007001,0.02974678,3366.0,3365.5,0.7917]
[1732249007763,0.21363899,3366.1,3365.5,0.7917]
[1732249008355,0.18389221,3366.1,3365.5,0.7917]
[1732249008649,0.1763139,3366.0,3365.5,0.7917]
[1732249009238,0.1763139,3366.0,3365.6,0.2968]
[1732249009608,0.02974678,3365.9,3365.2,0.2968]
[1732249009809,0.1763139,3366.0,3365.2,0.2968]
[1732249010029,0.02974678,3366.1,3365.2,0.2968]
[1732249010259,0.2549834,3366.1,3364.9,0.2968]
[1732249010541,0.25513816,3366.3,3365.6,0.2968]
[1732249010706,0.7917,3366.5,3365.8,0.2968]
[1732249011106,0.82144678,3366.5,3366.0,0.2968]
[1732249011354,0.82144678,3366.5,3365.9,0.8076]
[1732249011355,0.02974678,3367.7,3366.4,0.2968]
[1732249011671,0.7578,3367.8,3366.8,0.2968]
[1732249011672,0.8076,3367.6,3366.8,0.2968]
[1732249011954,3.51967435,3367.5,3366.8,0.2968]
[1732249013158,3.48992757,3367.5,3366.8,0.2968]
[1732249014160,3.48992757,3367.5,3366.7,0.8076]
[1732249014327,0.02974678,3367.4,3366.7,0.8076]
[1732249014514,0.35196744,3367.3,3366.7,0.8076]
[1732249014719,0.02974678,3367.2,3366.7,0.8076]
[1732249017667,0.38171422,3367.3,3366.7,0.8076]
[1732249018068,0.38171422,3367.3,3366.0,0.2968]
[1732249018225,1.14496418,3367.2,3366.0,0.2968]
[1732249018425,0.02974678,3367.1,3366.0,0.2968]
[1732249019725,3.51967435,3367.1,3366.0,0.2968]
[1732249020644,3.51967435,3367.1,3365.2,0.32650758]
[1732249020849,3.51967435,3367.1,3365.6,0.2968]
[1732249021157,0.29130805,3367.3,3366.0,0.8076]
[1732249021363,0.29130805,3367.3,3366.1,0.8076]
[1732249021566,0.75390356,3367.2,3366.2,0.8076]
[1732249021927,0.75390356,3367.2,3366.3,0.8076]
[1732249022364,0.29130805,3367.3,3366.4,0.2968]
[1732249022664,0.29130805,3367.3,3365.2,0.71504602]
[1732249022665,0.8076,3367.7,3366.5,1.1044]
[1732249022860,0.8076,3367.7,3366.6,0.8076]
[1732249023051,0.46068276,3367.6,3366.6,0.8076]
[1732249024108,0.49042954,3367.6,3366.7,0.2968]
[1732249024412,0.49042954,3367.6,3367.0,0.8076]
[1732249024608,0.15575224,3367.5,3367.0,0.8076]
[1732249025094,0.18549902,3367.5,3367.0,0.8076]
[1732249025294,3.67542659,3367.5,3367.0,0.8076]
[1732249026016,0.7578,3367.4,3364.9,0.37497739]
[1732249026218,1.307867,3367.4,3365.6,0.2968]
[1732249026376,0.550067,3367.4,3365.7,0.02970548]
[1732249026581,0.49535468,3367.3,3365.7,0.02970548]
[1732249026902,0.02974678,3367.2,3365.7,0.02970548]
[1732249027100,0.49535468,3367.3,3365.7,0.02970548]
[1732249027301,0.49535468,3367.3,3365.7,0.32650548]
[1732249027506,3.64567981,3367.5,3365.9,0.2968]
[1732249027719,3.64567981,3367.5,3366.1,0.2968]
[1732249028286,0.02974678,3367.4,3366.1,0.2968]
[1732249028487,0.7578,3368.8,3366.4,0.01]
[1732249028803,1.21561278,3368.7,3367.1,0.2968]
[1732249029117,0.60259568,3368.6,3367.5,0.2968]
[1732249029317,0.02974678,3368.5,3367.5,0.2968]
[1732249030193,0.02974678,3368.5,3367.4,0.6737]
[1732249030194,0.60259568,3368.6,3367.6,0.9705]
[1732249030400,0.25341633,3368.8,3367.7,1.00018999]
[1732249030746,0.98290007,3368.9,3367.7,0.9705]
[1732249030945,0.17704469,3368.8,3367.7,0.9705]
[1732249031240,0.20679147,3368.8,3367.7,0.9705]
[1732249032516,3.69671904,3368.8,3367.7,0.6737]
[1732249032704,4.68699518,3368.8,3367.7,0.6737]
[1732249032908,0.56166427,3368.7,3367.7,0.6737]
[1732249033202,0.02974678,3368.6,3367.7,0.6737]
[1732249033606,0.56166427,3368.7,3367.7,0.6737]
[1732249033810,0.17704469,3368.8,3367.9,0.9705]
[1732249034053,0.17704469,3368.8,3367.8,0.02969013]
[1732249034054,0.9517011,3370.2,3368.5,0.2968]
[1732249034361,0.6737,3369.9,3368.4,0.6737]
[1732249034521,0.02974678,3369.8,3368.4,0.6737]
[1732249034921,4.48020371,3369.7,3368.4,0.6737]
[1732249035261,0.8014,3369.5,3368.4,0.6737]
[1732249035411,0.02974678,3369.4,3368.4,0.6737]
[1732249036242,4.48020371,3369.3,3368.4,0.6737]
[1732249036452,0.8014,3369.1,3367.2,0.6737]
[1732249036748,0.02974678,3369.0,3367.4,0.6737]
[1732249039331,3.0,3368.8,3367.4,0.6737]
[1732249039680,0.02974678,3368.7,3367.4,0.6737]
[1732249040075,0.8014,3368.6,3367.4,0.6737]
[1732249040377,0.41286146,3368.5,3367.4,0.6737]
[1732249040736,4.89306517,3368.5,3367.4,0.6737]
[1732249040940,4.50995049,3368.5,3367.4,0.6737]
[1732249043681,4.76676611,3368.5,3367.4,0.6737]
[1732249044446,0.25681562,3368.5,3367.4,0.6737]
[1732249044636,0.02974678,3368.8,3367.1,0.6737]
[1732249044846,4.48020371,3368.9,3367.3,0.6737]
[1732249045041,0.02974678,3369.1,3367.5,0.6737]
[1732249045240,0.02974678,3369.1,3367.6,0.70338926]
[1732249045477,0.02974678,3369.1,3367.6,0.6737]
[1732249045647,0.56088183,3369.1,3367.6,0.6737]
[1732249048081,4.48020371,3368.9,3367.6,0.6737]
[1732249048282,0.02974678,3368.8,3367.6,0.6737]
[1732249048482,0.7872,3368.7,3367.6,0.6737]
[1732249048784,0.02974678,3368.6,3367.6,0.6737]
[1732249049090,0.38169468,3368.5,3367.6,0.6737]
[1732249049275,0.02974678,3368.4,3367.6,0.6737]
[1732249050192,0.02974678,3368.8,3367.6,0.6737]
[1732249051218,3.02974678,3368.8,3367.6,0.6737]
[1732249051421,0.55,3368.3,3366.7,0.6737]
[1732249051746,4.48020371,3368.1,3366.7,0.6737]
[1732249052033,0.02974678,3368.0,3366.7,0.6737]
[1732249052239,0.57974678,3368.0,3366.7,0.6737]
[1732249052533,3.57974678,3368.0,3366.7,0.6737]
[1732249052732,0.80599505,3367.9,3366.7,0.6737]
[1732249052939,0.02974678,3367.8,3366.7,0.6737]
[1732249053446,0.7872,3367.7,3366.7,0.6737]
[1732249053648,0.02974678,3367.6,3366.7,0.6737]
[1732249053937,4.48020371,3367.3,3366.7,0.6737]
[1732249054241,0.47776715,3367.2,3365.8,0.2968]
[1732249054397,0.47776715,3367.2,3365.9,0.6737]
[1732249055743,0.55,3367.1,3365.9,0.6737]
[1732249055934,0.58054387,3367.0,3365.9,0.6737]
[1732249056236,1.36774387,3367.0,3365.9,0.6737]
[1732249056608,5.03020371,3366.9,3365.9,0.6737]
[1732249056824,0.02974678,3366.8,3365.9,0.6737]
[1732249058951,0.6737,3367.6,3365.9,0.6737]
[1732249058952,0.25852153,3367.1,3365.9,0.6737]
[1732249059246,0.25852153,3367.1,3366.0,0.6737]
[1732249059247,0.02974678,3367.1,3366.0,0.6737]
[1732249059460,5.15390371,3367.7,3366.1,0.6737]
[1732249059607,0.52674037,3367.6,3366.3,0.6737]
[1732249059813,0.52674037,3367.6,3366.4,1.75008151]
[1732249060023,0.52941805,3367.5,3366.5,0.6737]
[1732249060222,0.52941805,3367.5,3366.6,1.06278931]
[1732249060438,0.02974678,3367.4,3366.5,0.6737]
[1732249060642,0.55,3367.3,3366.5,0.6737]
[1732249060824,0.02974678,3367.2,3366.5,0.6737]
[1732249061435,0.57974678,3367.3,3366.5,0.6737]
[1732249061622,0.55,3367.3,3366.5,0.6737]
[1732249061841,0.02974678,3367.2,3366.5,0.6737]